[Event "Titled Tuesday Blitz November 22 Late 2022"]
[White "Walentukiewicz, Michal"]
[Black "Jaracz, Pawel"]
[WhiteFideId "1126903"]
[BlackFideId "1102222"]
[WhiteElo "2026"]
[BlackElo "2459"]
[Result "0-1"]
[Round "04"]
[TimeControl "180+1"]
[Date "2022.11.23"]
[WhiteClock "0:00:06"]
[BlackClock "0:00:12"]

1. g3 {[%clk 0:02:58]}  d5 {[%clk 0:02:59]} 2. Bg2 {[%clk 0:02:58]}  c6 {[%clk 0:02:57]} 3. c4 {[%clk 0:02:58]}  Nf6 {[%clk 0:02:55]} 4. cxd5 {[%clk 0:02:59]}  Nxd5 {[%clk 0:02:53]} 5. Nf3 {[%clk 0:03:00]}  g6 {[%clk 0:02:52]} 6. O-O {[%clk 0:03:00]}  Bg7 {[%clk 0:02:52]} 7. Nc3 {[%clk 0:03:01]}  O-O {[%clk 0:02:51]} 8. d4 {[%clk 0:03:01]}  Nb6 {[%clk 0:02:48]} 9. e4 {[%clk 0:03:00]}  Bg4 {[%clk 0:02:48]} 10. Be3 {[%clk 0:02:59]}  Nc4 {[%clk 0:02:47]} 11. Qb3 {[%clk 0:02:53]}  Nxe3 {[%clk 0:02:46]} 12. fxe3 {[%clk 0:02:52]}  Qb6 {[%clk 0:02:42]} 13. Qxb6 {[%clk 0:02:49]}  axb6 {[%clk 0:02:42]} 14. e5 {[%clk 0:02:34]}  Nd7 {[%clk 0:02:32]} 15. h3 {[%clk 0:02:29]}  Bf5 {[%clk 0:02:19]} 16. e4 {[%clk 0:02:00]}  Be6 {[%clk 0:02:18]} 17. d5 {[%clk 0:02:00]}  cxd5 {[%clk 0:02:18]} 18. exd5 {[%clk 0:02:01]}  Bf5 {[%clk 0:02:18]} 19. g4 {[%clk 0:02:01]}  Bd3 {[%clk 0:02:18]} 20. Rfd1 {[%clk 0:02:01]}  Bc4 {[%clk 0:02:14]} 21. e6 {[%clk 0:01:59]}  fxe6 {[%clk 0:02:07]} 22. dxe6 {[%clk 0:02:00]}  Nc5 {[%clk 0:02:07]} 23. Ng5 {[%clk 0:01:55]}  Rad8 {[%clk 0:01:57]} 24. Nge4 {[%clk 0:01:48]}  Nxe6 {[%clk 0:01:47]} 25. Rxd8 {[%clk 0:01:41]}  Rxd8 {[%clk 0:01:46]} 26. Rc1 {[%clk 0:01:41]}  Nf4 {[%clk 0:01:45]} 27. b3 {[%clk 0:01:35]}  Nxg2 {[%clk 0:01:33]} 28. Kxg2 {[%clk 0:01:33]}  Be6 {[%clk 0:01:28]} 29. Kf3 {[%clk 0:01:24]}  Bd7 {[%clk 0:01:21]} 30. Rd1 {[%clk 0:01:19]}  Rf8+ {[%clk 0:01:19]} 31. Ke2 {[%clk 0:01:16]}  Bc6 {[%clk 0:01:19]} 32. Nd5 {[%clk 0:01:11]}  Re8 {[%clk 0:01:05]} 33. Ng5 {[%clk 0:00:58]}  Be5 {[%clk 0:00:56]} 34. Nxb6 {[%clk 0:00:52]}  Rf8 {[%clk 0:00:39]} 35. Nc4 {[%clk 0:00:51]}  Bb5 {[%clk 0:00:33]} 36. Ne4 {[%clk 0:00:47]}  Ra8 {[%clk 0:00:29]} 37. Rd2 {[%clk 0:00:44]}  Bf4 {[%clk 0:00:29]} 38. Rc2 {[%clk 0:00:45]}  Bc6 {[%clk 0:00:28]} 39. Nc5 {[%clk 0:00:40]}  h5 {[%clk 0:00:24]} 40. a4 {[%clk 0:00:39]}  hxg4 {[%clk 0:00:24]} 41. hxg4 {[%clk 0:00:40]}  Kf7 {[%clk 0:00:23]} 42. Nd3 {[%clk 0:00:37]}  Be4 {[%clk 0:00:19]} 43. Rc3 {[%clk 0:00:20]}  g5 {[%clk 0:00:18]} 44. Nce5+ {[%clk 0:00:20]}  Ke6 {[%clk 0:00:17]} 45. Nf3 {[%clk 0:00:19]}  Rh8 {[%clk 0:00:15]} 46. Nc5+ {[%clk 0:00:19]}  Kd5 {[%clk 0:00:15]} 47. Nxe4 {[%clk 0:00:19]}  Kxe4 {[%clk 0:00:16]} 48. Rc4+ {[%clk 0:00:20]}  Kd5 {[%clk 0:00:16]} 49. Nd4 {[%clk 0:00:19]}  e5 {[%clk 0:00:16]} 50. Nf5 {[%clk 0:00:18]}  e4 {[%clk 0:00:14]} 51. Rb4 {[%clk 0:00:18]}  Rh2+ {[%clk 0:00:14]} 52. Kf1 {[%clk 0:00:17]}  e3 {[%clk 0:00:13]} 53. Rxb7 {[%clk 0:00:11]}  Ke4 {[%clk 0:00:13]} 54. Re7+ {[%clk 0:00:11]}  Kf3 {[%clk 0:00:13]} 55. Kg1 {[%clk 0:00:06]}  Rg2+ {[%clk 0:00:13]} 56. Kh1 {[%clk 0:00:06]}  Rb2 {[%clk 0:00:13]} 57. Nd4+ {[%clk 0:00:06]}  Kxg4 {[%clk 0:00:13]} 58. Kg1 {[%clk 0:00:06]}  Kg3 {[%clk 0:00:12]} 59. Kf1 {[%clk 0:00:06]}  Rf2+ {[%clk 0:00:12]} 60. Ke1 {[%clk 0:00:06]}  Ra2 {[%clk 0:00:11]} 61. Nf5+ {[%clk 0:00:06]}  Kg4 {[%clk 0:00:11]} 62. Nxe3+ {[%clk 0:00:06]}  Kf3 {[%clk 0:00:12]} 63. Nc4 {[%clk 0:00:06]}  Ra1# {[%clk 0:00:12]} 0-1


[Site "https://www.chess.com"]

[Event "Titled Tuesday Blitz November 22 Late 2022"]
[White "Yurovskykh, Oleksandr"]
[Black "Fier, Alexandr"]
[WhiteFideId "14134020"]
[BlackFideId "2107139"]
[WhiteElo "2265"]
[BlackElo "2617"]
[Result "1-0"]
[Round "04"]
[TimeControl "180+1"]
[Date "2022.11.23"]
[WhiteClock "0:00:17"]
[BlackClock "0:01:23"]

1. d4 {[%clk 0:02:57]}  Nf6 {[%clk 0:02:59]} 2. Nf3 {[%clk 0:02:57]}  c5 {[%clk 0:02:59]} 3. c3 {[%clk 0:02:57]}  Qc7 {[%clk 0:02:58]} 4. Bg5 {[%clk 0:02:56]}  Ne4 {[%clk 0:02:58]} 5. Bh4 {[%clk 0:02:55]}  d5 {[%clk 0:02:58]} 6. e3 {[%clk 0:02:55]}  Nc6 {[%clk 0:02:58]} 7. Nbd2 {[%clk 0:02:56]}  Bf5 {[%clk 0:02:58]} 8. Be2 {[%clk 0:02:55]}  e6 {[%clk 0:02:59]} 9. Nxe4 {[%clk 0:02:53]}  Bxe4 {[%clk 0:02:58]} 10. Bg3 {[%clk 0:02:53]}  Qb6 {[%clk 0:02:59]} 11. Qb3 {[%clk 0:02:54]}  c4 {[%clk 0:02:59]} 12. Qxb6 {[%clk 0:02:54]}  axb6 {[%clk 0:02:59]} 13. a3 {[%clk 0:02:55]}  b5 {[%clk 0:03:00]} 14. O-O {[%clk 0:02:54]}  f6 {[%clk 0:02:58]} 15. Nd2 {[%clk 0:02:54]}  Bg6 {[%clk 0:02:57]} 16. Bf3 {[%clk 0:02:53]}  Bd3 {[%clk 0:02:53]} 17. Rfe1 {[%clk 0:02:53]}  f5 {[%clk 0:02:53]} 18. Rac1 {[%clk 0:02:46]}  Kd7 {[%clk 0:02:52]} 19. Bd1 {[%clk 0:02:42]}  g5 {[%clk 0:02:51]} 20. Nf3 {[%clk 0:02:42]}  Be7 {[%clk 0:02:51]} 21. Ne5+ {[%clk 0:02:42]}  Nxe5 {[%clk 0:02:51]} 22. Bxe5 {[%clk 0:02:43]}  Rhg8 {[%clk 0:02:51]} 23. Be2 {[%clk 0:02:39]}  Bxe2 {[%clk 0:02:51]} 24. Rxe2 {[%clk 0:02:40]}  Kc6 {[%clk 0:02:48]} 25. Kf1 {[%clk 0:02:40]}  Kb6 {[%clk 0:02:48]} 26. Ke1 {[%clk 0:02:39]}  Ka5 {[%clk 0:02:49]} 27. Kd1 {[%clk 0:02:40]}  Ka4 {[%clk 0:02:49]} 28. Kc2 {[%clk 0:02:40]}  Raf8 {[%clk 0:02:48]} 29. Rce1 {[%clk 0:02:39]}  h5 {[%clk 0:02:45]} 30. f3 {[%clk 0:02:39]}  g4 {[%clk 0:02:44]} 31. f4 {[%clk 0:02:39]}  Bh4 {[%clk 0:02:27]} 32. Rb1 {[%clk 0:02:34]}  Ka5 {[%clk 0:02:26]} 33. Bc7+ {[%clk 0:02:25]}  Ka6 {[%clk 0:02:26]} 34. Ra1 {[%clk 0:02:24]}  b6 {[%clk 0:02:24]} 35. Bd6 {[%clk 0:02:17]}  Rf7 {[%clk 0:02:24]} 36. Be5 {[%clk 0:01:59]}  Kb7 {[%clk 0:02:23]} 37. Rh1 {[%clk 0:02:00]}  Ra8 {[%clk 0:02:22]} 38. h3 {[%clk 0:01:53]}  Bg3 {[%clk 0:01:53]} 39. hxg4 {[%clk 0:01:47]}  hxg4 {[%clk 0:01:54]} 40. Rh6 {[%clk 0:01:43]}  Re8 {[%clk 0:01:54]} 41. Rd2 {[%clk 0:01:41]}  Kc6 {[%clk 0:01:55]} 42. Rd1 {[%clk 0:01:41]}  Kd7 {[%clk 0:01:55]} 43. Rdh1 {[%clk 0:01:41]}  Ke7 {[%clk 0:01:52]} 44. Rg6 {[%clk 0:01:40]}  Kd7 {[%clk 0:01:50]} 45. Rhh6 {[%clk 0:01:39]}  Bf2 {[%clk 0:01:48]} 46. Kd2 {[%clk 0:01:39]}  g3 {[%clk 0:01:49]} 47. Rg5 {[%clk 0:01:34]}  Rfe7 {[%clk 0:01:48]} 48. Rgh5 {[%clk 0:01:34]}  Rc8 {[%clk 0:01:48]} 49. Rh7 {[%clk 0:01:28]}  Re8 {[%clk 0:01:47]} 50. R5h6 {[%clk 0:01:22]}  Rxh7 {[%clk 0:01:47]} 51. Rxh7+ {[%clk 0:01:22]}  Re7 {[%clk 0:01:44]} 52. Rh6 {[%clk 0:01:23]}  Kc6 {[%clk 0:01:42]} 53. Ke2 {[%clk 0:01:21]}  Kb7 {[%clk 0:01:42]} 54. Bf6 {[%clk 0:01:21]}  Re8 {[%clk 0:01:42]} 55. Rh7+ {[%clk 0:01:20]}  Ka6 {[%clk 0:01:42]} 56. Be5 {[%clk 0:01:18]}  Ra8 {[%clk 0:01:40]} 57. Re7 {[%clk 0:01:14]}  Ka5 {[%clk 0:01:41]} 58. Rxe6 {[%clk 0:01:15]}  Ra6 {[%clk 0:01:40]} 59. Bc7 {[%clk 0:01:15]}  Ka4 {[%clk 0:01:40]} 60. Re5 {[%clk 0:01:06]}  Kb3 {[%clk 0:01:38]} 61. Bd6 {[%clk 0:01:06]}  Kxb2 {[%clk 0:01:34]} 62. Bb4 {[%clk 0:01:07]}  Ra8 {[%clk 0:01:34]} 63. Rxd5 {[%clk 0:01:04]}  Rh8 {[%clk 0:01:29]} 64. Rxf5 {[%clk 0:00:58]}  Kc2 {[%clk 0:01:29]} 65. d5 {[%clk 0:00:55]}  Rh1 {[%clk 0:01:30]} 66. Re5 {[%clk 0:00:54]}  Rg1 {[%clk 0:01:29]} 67. Kf3 {[%clk 0:00:53]}  Rd1 {[%clk 0:01:23]} 68. d6 {[%clk 0:00:53]}  Be1 {[%clk 0:01:24]} 69. f5 {[%clk 0:00:47]}  Bxc3 {[%clk 0:01:24]} 70. Bxc3 {[%clk 0:00:47]}  Kxc3 {[%clk 0:01:25]} 71. e4 {[%clk 0:00:46]}  Rxd6 {[%clk 0:01:25]} 72. Rxb5 {[%clk 0:00:45]}  Kd3 {[%clk 0:01:25]} 73. e5 {[%clk 0:00:45]}  Rd8 {[%clk 0:01:24]} 74. Kxg3 {[%clk 0:00:43]}  c3 {[%clk 0:01:25]} 75. Rxb6 {[%clk 0:00:44]}  Rc8 {[%clk 0:01:25]} 76. Rb1 {[%clk 0:00:36]}  c2 {[%clk 0:01:23]} 77. Rc1 {[%clk 0:00:32]}  Kd2 {[%clk 0:01:23]} 78. Ra1 {[%clk 0:00:28]}  Rb8 {[%clk 0:01:22]} 79. f6 {[%clk 0:00:17]}  Rb1 {[%clk 0:01:20]} 80. Ra2 {[%clk 0:00:17]}  Rf1 {[%clk 0:01:21]} 81. Kg4 {[%clk 0:00:16]}  Kd3 {[%clk 0:01:22]} 82. Rxc2 {[%clk 0:00:16]}  Kxc2 {[%clk 0:01:22]} 83. Kg5 {[%clk 0:00:16]}  Kd3 {[%clk 0:01:23]} 84. e6 {[%clk 0:00:17]}  Rf2 {[%clk 0:01:22]} 85. e7 {[%clk 0:00:17]}  Rxg2+ {[%clk 0:01:23]} 86. Kf5 {[%clk 0:00:17]} 1-0


[Site "https://www.chess.com"]

[Event "Titled Tuesday Blitz November 22 Late 2022"]
[White "Zhu, Jiner"]
[Black "Melkumyan, Hrant"]
[WhiteFideId "8608059"]
[BlackFideId "13302485"]
[WhiteElo "2384"]
[BlackElo "2604"]
[Result "1/2-1/2"]
[Round "04"]
[TimeControl "180+1"]
[Date "2022.11.22"]
[WhiteClock "0:00:09"]
[BlackClock "0:00:03"]

1. e4 {[%clk 0:03:00]}  c5 {[%clk 0:02:52]} 2. Nc3 {[%clk 0:02:59]}  Nc6 {[%clk 0:02:52]} 3. Nge2 {[%clk 0:02:55]}  g6 {[%clk 0:02:47]} 4. d4 {[%clk 0:02:55]}  cxd4 {[%clk 0:02:48]} 5. Nxd4 {[%clk 0:02:56]}  Bg7 {[%clk 0:02:49]} 6. Be3 {[%clk 0:02:56]}  Nf6 {[%clk 0:02:49]} 7. Bc4 {[%clk 0:02:56]}  O-O {[%clk 0:02:48]} 8. Bb3 {[%clk 0:02:45]}  d6 {[%clk 0:02:48]} 9. f3 {[%clk 0:02:37]}  Na5 {[%clk 0:02:41]} 10. h4 {[%clk 0:02:29]}  h5 {[%clk 0:02:41]} 11. Qd2 {[%clk 0:02:28]}  Bd7 {[%clk 0:02:37]} 12. O-O-O {[%clk 0:02:27]}  Rc8 {[%clk 0:02:37]} 13. Kb1 {[%clk 0:02:19]}  Nc4 {[%clk 0:02:37]} 14. Bxc4 {[%clk 0:02:19]}  Rxc4 {[%clk 0:02:38]} 15. Nb3 {[%clk 0:02:19]}  Qc7 {[%clk 0:02:31]} 16. Bh6 {[%clk 0:01:57]}  Rc8 {[%clk 0:02:07]} 17. Bxg7 {[%clk 0:01:52]}  Kxg7 {[%clk 0:02:08]} 18. g4 {[%clk 0:01:41]}  Rxc3 {[%clk 0:02:07]} 19. bxc3 {[%clk 0:01:40]}  Qxc3 {[%clk 0:02:08]} 20. Qxc3 {[%clk 0:01:38]}  Rxc3 {[%clk 0:02:07]} 21. g5 {[%clk 0:01:38]}  Ne8 {[%clk 0:02:03]} 22. Rd3 {[%clk 0:01:38]}  Rc7 {[%clk 0:01:59]} 23. Nd4 {[%clk 0:01:33]}  Rc4 {[%clk 0:01:50]} 24. Kb2 {[%clk 0:01:30]}  Nc7 {[%clk 0:01:50]} 25. Rhd1 {[%clk 0:01:28]}  Ne6 {[%clk 0:01:31]} 26. Nxe6+ {[%clk 0:01:22]}  Bxe6 {[%clk 0:01:32]} 27. Rc3 {[%clk 0:01:20]}  Rb4+ {[%clk 0:01:32]} 28. Ka1 {[%clk 0:01:19]}  Ra4 {[%clk 0:01:32]} 29. a3 {[%clk 0:01:18]}  f6 {[%clk 0:01:30]} 30. Rc7 {[%clk 0:01:08]}  Kf7 {[%clk 0:01:21]} 31. gxf6 {[%clk 0:00:49]}  Kxf6 {[%clk 0:01:21]} 32. Kb2 {[%clk 0:00:48]}  b6 {[%clk 0:01:18]} 33. Rg1 {[%clk 0:00:44]}  Ra5 {[%clk 0:01:18]} 34. c4 {[%clk 0:00:38]}  Bf7 {[%clk 0:01:03]} 35. f4 {[%clk 0:00:32]}  Be6 {[%clk 0:00:57]} 36. Rg5 {[%clk 0:00:30]}  Ra4 {[%clk 0:00:49]} 37. e5+ {[%clk 0:00:29]}  dxe5 {[%clk 0:00:48]} 38. fxe5+ {[%clk 0:00:30]}  Kf7 {[%clk 0:00:47]} 39. Rg3 {[%clk 0:00:26]}  Ra5 {[%clk 0:00:42]} 40. Re3 {[%clk 0:00:20]}  Bf5 {[%clk 0:00:39]} 41. Kb3 {[%clk 0:00:20]}  Be6 {[%clk 0:00:19]} 42. Kb4 {[%clk 0:00:20]}  Bf5 {[%clk 0:00:19]} 43. c5 {[%clk 0:00:19]}  Rxc5 {[%clk 0:00:16]} 44. Rxc5 {[%clk 0:00:19]}  bxc5+ {[%clk 0:00:17]} 45. Kxc5 {[%clk 0:00:20]}  Ke6 {[%clk 0:00:18]} 46. a4 {[%clk 0:00:19]}  g5 {[%clk 0:00:14]} 47. hxg5 {[%clk 0:00:19]}  h4 {[%clk 0:00:15]} 48. a5 {[%clk 0:00:19]}  h3 {[%clk 0:00:16]} 49. Re2 {[%clk 0:00:19]}  Bg4 {[%clk 0:00:10]} 50. Rh2 {[%clk 0:00:18]}  Kxe5 {[%clk 0:00:11]} 51. Kc6 {[%clk 0:00:17]}  Kf5 {[%clk 0:00:05]} 52. Kb7 {[%clk 0:00:17]}  Kxg5 {[%clk 0:00:05]} 53. Kxa7 {[%clk 0:00:17]}  Kh4 {[%clk 0:00:05]} 54. Kb6 {[%clk 0:00:17]}  Kg3 {[%clk 0:00:06]} 55. Rh1 {[%clk 0:00:11]}  h2 {[%clk 0:00:06]} 56. Kc5 {[%clk 0:00:06]}  Bf3 {[%clk 0:00:07]} 57. Rxh2 {[%clk 0:00:06]}  Kxh2 {[%clk 0:00:06]} 58. Kd4 {[%clk 0:00:06]}  Kg3 {[%clk 0:00:02]} 59. Ke5 {[%clk 0:00:07]}  Bg4 {[%clk 0:00:01]} 60. a6 {[%clk 0:00:06]}  Bc8 {[%clk 0:00:01]} 61. a7 {[%clk 0:00:06]}  Bb7 {[%clk 0:00:02]} 62. Ke6 {[%clk 0:00:07]}  Kf4 {[%clk 0:00:02]} 63. Kxe7 {[%clk 0:00:08]}  Ke5 {[%clk 0:00:03]} 64. a8=Q {[%clk 0:00:09]}  Bxa8 {[%clk 0:00:03]} 1/2-1/2


[Site "https://www.chess.com"]

[Event "Titled Tuesday Blitz November 22 Late 2022"]
[White "Aguilar, Juan"]
[Black "Djordjevic, Vuk"]
[WhiteFideId "3800091"]
[BlackFideId "902098"]
[WhiteElo "2491"]
[BlackElo "2456"]
[Result "0-1"]
[Round "05"]
[TimeControl "180+1"]
[Date "2022.11.23"]
[WhiteClock "0:00:02"]
[BlackClock "0:00:05"]

1. d4 {[%clk 0:03:00]}  Nf6 {[%clk 0:02:59]} 2. c4 {[%clk 0:03:01]}  e6 {[%clk 0:03:00]} 3. Nf3 {[%clk 0:03:00]}  b6 {[%clk 0:03:00]} 4. g3 {[%clk 0:03:00]}  Ba6 {[%clk 0:02:58]} 5. Qc2 {[%clk 0:03:00]}  d5 {[%clk 0:02:54]} 6. b3 {[%clk 0:02:48]}  Bb4+ {[%clk 0:02:51]} 7. Bd2 {[%clk 0:02:43]}  Qe7 {[%clk 0:02:49]} 8. Bg2 {[%clk 0:02:40]}  O-O {[%clk 0:02:48]} 9. O-O {[%clk 0:02:40]}  Rc8 {[%clk 0:02:44]} 10. Rc1 {[%clk 0:02:20]}  Bb7 {[%clk 0:02:27]} 11. a3 {[%clk 0:02:17]}  Bxd2 {[%clk 0:02:26]} 12. Nbxd2 {[%clk 0:02:18]}  c5 {[%clk 0:02:26]} 13. Qb2 {[%clk 0:02:10]}  dxc4 {[%clk 0:02:19]} 14. Nxc4 {[%clk 0:02:09]}  Nbd7 {[%clk 0:02:17]} 15. dxc5 {[%clk 0:02:01]}  Nxc5 {[%clk 0:02:16]} 16. Ne3 {[%clk 0:01:52]}  Rc7 {[%clk 0:02:13]} 17. Rc2 {[%clk 0:01:48]}  Rac8 {[%clk 0:02:08]} 18. Rac1 {[%clk 0:01:45]}  Nce4 {[%clk 0:01:29]} 19. Nd4 {[%clk 0:01:40]}  Rxc2 {[%clk 0:01:26]} 20. Rxc2 {[%clk 0:01:40]}  Rxc2 {[%clk 0:01:26]} 21. Nexc2 {[%clk 0:01:38]}  Qd7 {[%clk 0:01:18]} 22. Qc1 {[%clk 0:01:25]}  e5 {[%clk 0:00:59]} 23. Nf3 {[%clk 0:01:25]}  Nc3 {[%clk 0:00:59]} 24. Bf1 {[%clk 0:01:17]}  Bxf3 {[%clk 0:00:49]} 25. exf3 {[%clk 0:01:16]}  Qd5 {[%clk 0:00:35]} 26. Qe3 {[%clk 0:01:09]}  Nd1 {[%clk 0:00:20]} 27. Qd3 {[%clk 0:00:56]}  Qxd3 {[%clk 0:00:20]} 28. Bxd3 {[%clk 0:00:57]}  Nd7 {[%clk 0:00:21]} 29. Nb4 {[%clk 0:00:52]}  Nc3 {[%clk 0:00:18]} 30. Nc6 {[%clk 0:00:48]}  Nc5 {[%clk 0:00:17]} 31. Bc2 {[%clk 0:00:48]}  Nb5 {[%clk 0:00:17]} 32. a4 {[%clk 0:00:39]}  Nd4 {[%clk 0:00:16]} 33. Nxd4 {[%clk 0:00:37]}  exd4 {[%clk 0:00:17]} 34. Kf1 {[%clk 0:00:36]}  a5 {[%clk 0:00:15]} 35. Ke1 {[%clk 0:00:33]}  Kf8 {[%clk 0:00:15]} 36. Kd2 {[%clk 0:00:31]}  Ke7 {[%clk 0:00:14]} 37. h4 {[%clk 0:00:28]}  h6 {[%clk 0:00:13]} 38. Bd1 {[%clk 0:00:26]}  Kd6 {[%clk 0:00:12]} 39. Kc2 {[%clk 0:00:26]}  Na6 {[%clk 0:00:08]} 40. h5 {[%clk 0:00:26]}  Nb4+ {[%clk 0:00:08]} 41. Kd2 {[%clk 0:00:25]}  Ke5 {[%clk 0:00:07]} 42. Be2 {[%clk 0:00:25]}  Kf5 {[%clk 0:00:06]} 43. f4 {[%clk 0:00:22]}  Ke4 {[%clk 0:00:05]} 44. Bg4 {[%clk 0:00:20]}  Kd5 {[%clk 0:00:03]} 45. Bf3+ {[%clk 0:00:20]}  Kd6 {[%clk 0:00:03]} 46. Be2 {[%clk 0:00:16]}  Kc5 {[%clk 0:00:03]} 47. Bb5 {[%clk 0:00:16]}  f6 {[%clk 0:00:03]} 48. Bc4 {[%clk 0:00:16]}  Kd6 {[%clk 0:00:03]} 49. Ke2 {[%clk 0:00:14]}  Kc5 {[%clk 0:00:03]} 50. Kd2 {[%clk 0:00:14]}  Kc6 {[%clk 0:00:02]} 51. Ke2 {[%clk 0:00:14]}  Kd6 {[%clk 0:00:03]} 52. Kd2 {[%clk 0:00:14]}  f5 {[%clk 0:00:03]} 53. Ke2 {[%clk 0:00:14]}  Kc5 {[%clk 0:00:02]} 54. Kd2 {[%clk 0:00:14]}  Kd6 {[%clk 0:00:02]} 55. Ke2 {[%clk 0:00:13]}  Ke7 {[%clk 0:00:03]} 56. Bg8 {[%clk 0:00:10]}  Kf6 {[%clk 0:00:03]} 57. Bh7 {[%clk 0:00:11]}  Ke6 {[%clk 0:00:03]} 58. Bg6 {[%clk 0:00:10]}  Na6 {[%clk 0:00:01]} 59. f3 {[%clk 0:00:10]}  Nc5 {[%clk 0:00:02]} 60. Bh7 {[%clk 0:00:08]}  Kf7 {[%clk 0:00:03]} 61. Bxf5 {[%clk 0:00:07]}  Nxb3 {[%clk 0:00:03]} 62. Kd3 {[%clk 0:00:07]}  Nc5+ {[%clk 0:00:04]} 63. Kxd4 {[%clk 0:00:07]}  Nxa4 {[%clk 0:00:04]} 64. Bd3 {[%clk 0:00:04]}  Nc5 {[%clk 0:00:04]} 65. Bc4+ {[%clk 0:00:04]}  Kf6 {[%clk 0:00:04]} 66. g4 {[%clk 0:00:04]}  a4 {[%clk 0:00:04]} 67. Kd5 {[%clk 0:00:03]}  a3 {[%clk 0:00:04]} 68. Ba2 {[%clk 0:00:02]}  Na4 {[%clk 0:00:01]} 69. Kc4 {[%clk 0:00:02]}  Nb2+ {[%clk 0:00:02]} 70. Kb4 {[%clk 0:00:02]}  Nd3+ {[%clk 0:00:02]} 71. Kxa3 {[%clk 0:00:02]}  Nxf4 {[%clk 0:00:03]} 72. Kb4 {[%clk 0:00:03]}  Nd3+ {[%clk 0:00:03]} 73. Kc3 {[%clk 0:00:02]}  Ne5 {[%clk 0:00:03]} 74. Bd5 {[%clk 0:00:03]}  Kg5 {[%clk 0:00:04]} 75. Kd4 {[%clk 0:00:02]}  Kf4 {[%clk 0:00:04]} 76. Be4 {[%clk 0:00:01]}  Nxf3+ {[%clk 0:00:05]} 77. Kd5 {[%clk 0:00:01]}  Ne5 {[%clk 0:00:05]} 78. Bg6 {[%clk 0:00:01]}  Nxg6 {[%clk 0:00:05]} 79. hxg6 {[%clk 0:00:02]}  Kxg4 {[%clk 0:00:05]} 0-1


[Site "https://www.chess.com"]

[Event "Titled Tuesday Blitz November 22 Late 2022"]
[White "Alexikov, Alexander"]
[Black "Marchesich, Giovanni"]
[WhiteFideId "14103958"]
[BlackFideId "2824790"]
[WhiteElo "2222"]
[BlackElo "2200"]
[Result "1-0"]
[Round "05"]
[TimeControl "180+1"]
[Date "2022.11.23"]
[WhiteClock "0:00:21"]
[BlackClock "0:00:15"]

1. e4 {[%clk 0:03:00]}  e5 {[%clk 0:01:22]} 2. Nf3 {[%clk 0:02:59]}  d5 {[%clk 0:01:22]} 3. d4 {[%clk 0:02:55]}  dxe4 {[%clk 0:01:22]} 4. Nxe5 {[%clk 0:02:54]}  Bd6 {[%clk 0:01:22]} 5. Nc4 {[%clk 0:02:48]}  Nf6 {[%clk 0:01:22]} 6. Bg5 {[%clk 0:02:47]}  h6 {[%clk 0:01:21]} 7. Bh4 {[%clk 0:02:45]}  O-O {[%clk 0:01:21]} 8. Nbd2 {[%clk 0:02:43]}  Re8 {[%clk 0:01:18]} 9. Be2 {[%clk 0:02:39]}  Nc6 {[%clk 0:01:16]} 10. c3 {[%clk 0:02:37]}  g5 {[%clk 0:01:15]} 11. Bg3 {[%clk 0:02:36]}  Ne7 {[%clk 0:01:16]} 12. Qb3 {[%clk 0:02:26]}  Nf5 {[%clk 0:01:13]} 13. Bxd6 {[%clk 0:02:19]}  Nxd6 {[%clk 0:01:12]} 14. Ne3 {[%clk 0:02:18]}  Be6 {[%clk 0:01:10]} 15. Qc2 {[%clk 0:02:16]}  Nf5 {[%clk 0:01:05]} 16. Ndf1 {[%clk 0:02:01]}  c6 {[%clk 0:01:00]} 17. Nxf5 {[%clk 0:01:55]}  Bxf5 {[%clk 0:01:00]} 18. Ne3 {[%clk 0:01:55]}  Bg6 {[%clk 0:01:00]} 19. h4 {[%clk 0:01:55]}  Nd5 {[%clk 0:00:59]} 20. Qd2 {[%clk 0:01:49]}  f5 {[%clk 0:00:51]} 21. hxg5 {[%clk 0:01:48]}  Qxg5 {[%clk 0:00:51]} 22. Nxd5 {[%clk 0:01:44]}  cxd5 {[%clk 0:00:51]} 23. Qxg5 {[%clk 0:01:34]}  hxg5 {[%clk 0:00:51]} 24. g3 {[%clk 0:01:30]}  Kg7 {[%clk 0:00:49]} 25. Kd2 {[%clk 0:01:27]}  Rh8 {[%clk 0:00:49]} 26. b3 {[%clk 0:01:25]}  Rad8 {[%clk 0:00:47]} 27. Ke3 {[%clk 0:01:22]}  Rhf8 {[%clk 0:00:40]} 28. f4 {[%clk 0:01:15]}  exf3 {[%clk 0:00:37]} 29. Bxf3 {[%clk 0:01:15]}  f4+ {[%clk 0:00:33]} 30. gxf4 {[%clk 0:01:14]}  gxf4+ {[%clk 0:00:25]} 31. Kf2 {[%clk 0:01:13]}  Be4 {[%clk 0:00:24]} 32. Rag1+ {[%clk 0:01:09]}  Kf7 {[%clk 0:00:24]} 33. Rg5 {[%clk 0:00:44]}  Rh8 {[%clk 0:00:20]} 34. Rxh8 {[%clk 0:00:39]}  Rxh8 {[%clk 0:00:21]} 35. Bxe4 {[%clk 0:00:38]}  dxe4 {[%clk 0:00:21]} 36. Rf5+ {[%clk 0:00:38]}  Ke6 {[%clk 0:00:22]} 37. Rxf4 {[%clk 0:00:38]}  Rh2+ {[%clk 0:00:20]} 38. Ke3 {[%clk 0:00:37]}  Rxa2 {[%clk 0:00:20]} 39. Rxe4+ {[%clk 0:00:37]}  Kd6 {[%clk 0:00:20]} 40. Kd3 {[%clk 0:00:35]}  Rb2 {[%clk 0:00:19]} 41. b4 {[%clk 0:00:33]}  b6 {[%clk 0:00:15]} 42. Rh4 {[%clk 0:00:32]}  a5 {[%clk 0:00:15]} 43. Rh6+ {[%clk 0:00:30]}  Kc7 {[%clk 0:00:15]} 44. bxa5 {[%clk 0:00:30]}  bxa5 {[%clk 0:00:15]} 45. Ra6 {[%clk 0:00:29]}  Kb7 {[%clk 0:00:15]} 46. Rxa5 {[%clk 0:00:27]}  Kb6 {[%clk 0:00:16]} 47. Rc5 {[%clk 0:00:27]}  Rb1 {[%clk 0:00:16]} 48. Kc4 {[%clk 0:00:26]}  Ra1 {[%clk 0:00:16]} 49. Rh5 {[%clk 0:00:26]}  Ra4+ {[%clk 0:00:16]} 50. Kb3 {[%clk 0:00:25]}  Ra1 {[%clk 0:00:16]} 51. Rh6+ {[%clk 0:00:25]}  Kc7 {[%clk 0:00:16]} 52. Kc4 {[%clk 0:00:24]}  Ra4+ {[%clk 0:00:16]} 53. Kd5 {[%clk 0:00:24]}  Ra5+ {[%clk 0:00:16]} 54. Ke4 {[%clk 0:00:23]}  Ra3 {[%clk 0:00:17]} 55. c4 {[%clk 0:00:23]}  Rg3 {[%clk 0:00:17]} 56. c5 {[%clk 0:00:22]}  Rg4+ {[%clk 0:00:17]} 57. Kd5 {[%clk 0:00:22]}  Rg5+ {[%clk 0:00:18]} 58. Kc4 {[%clk 0:00:22]}  Rg1 {[%clk 0:00:18]} 59. Rh7+ {[%clk 0:00:22]}  Kc8 {[%clk 0:00:18]} 60. d5 {[%clk 0:00:22]}  Rb1 {[%clk 0:00:16]} 61. d6 {[%clk 0:00:22]}  Kd8 {[%clk 0:00:16]} 62. Kd5 {[%clk 0:00:22]}  Ra1 {[%clk 0:00:15]} 63. Rh8+ {[%clk 0:00:21]} 1-0


[Site "https://www.chess.com"]